bitfinex/quotes_BTCUSD_20220111
["timestamp","ask_amount","ask_price","bid_price","bid_amount"]
[1641910833887,0.06107,41585.0,41584.0,0.39938189]
[1641910834150,1.08296262,41594.0,41590.0,0.22383844]
[1641910834341,0.80109569,41594.0,41590.0,0.22383844]
[1641910834542,0.16107,41591.0,41590.0,0.22383844]
[1641910834741,0.16226355,41591.0,41584.0,0.33927289]
[1641910834943,0.06107,41590.0,41584.0,0.33927289]
[1641910835342,0.06107,41590.0,41588.0,0.00046938]
[1641910835545,0.90109569,41595.0,41588.0,0.00046938]
[1641910835546,0.80109569,41595.0,41588.0,0.00046938]
[1641910835744,0.1,41593.0,41588.0,0.00046938]
[1641910835944,0.80109569,41595.0,41588.0,0.01746938]
[1641910836148,1.0,41592.0,41588.0,0.01746938]
[1641910836344,0.9,41592.0,41588.0,0.01746938]
[1641910837046,0.32265098,41591.0,41588.0,0.01746938]
[1641910837246,0.32265098,41591.0,41589.0,0.36234804]
[1641910837445,1.0,41592.0,41589.0,0.36234804]
[1641910838086,0.9,41592.0,41589.0,0.37234804]
[1641910838287,1.4,41590.0,41589.0,0.37234804]
[1641910838692,1.776231,41590.0,41589.0,0.37234804]
[1641910838888,1.776231,41590.0,41589.0,0.47234804]
[1641910839090,1.776231,41590.0,41589.0,0.37234804]
[1641910839388,2.51095246,41590.0,41589.0,0.36234804]
[1641910839989,2.51095246,41590.0,41589.0,0.37134804]
[1641910840590,2.13472146,41590.0,41589.0,0.37134804]
[1641910841194,2.13472146,41590.0,41589.0,0.36234804]
[1641910841639,0.1,41590.0,41589.0,0.36234804]
[1641910841835,0.1,41590.0,41582.0,0.1]
[1641910841836,14.63713082,41585.0,41582.0,0.1]
[1641910842035,14.63713082,41585.0,41583.0,0.0442]
[1641910842236,14.63713082,41585.0,41584.0,0.0442]
[1641910842437,6.86648741,41585.0,41584.0,0.3942]
[1641910842636,0.00120573,41594.0,41585.0,0.85]
[1641910842836,0.1,41598.0,41589.0,0.350472]
[1641910843037,0.1,41598.0,41591.0,0.42365867]
[1641910843237,0.1,41598.0,41592.0,0.0442]
[1641910843637,0.1,41598.0,41592.0,0.043961]
[1641910844037,0.1,41598.0,41592.0,0.055961]
[1641910844237,0.01,41599.0,41595.0,0.060089]
[1641910844438,0.01,41599.0,41596.0,0.0442]
[1641910844637,0.1,41601.0,41596.0,0.0442]
[1641910844638,0.0003917,41602.0,41597.0,1.05]
[1641910844844,0.4159,41608.0,41601.0,0.350354]
[1641910845042,0.024876,41613.0,41601.0,0.350354]
[1641910845043,0.25222065,41610.0,41602.0,0.0442]
[1641910845239,0.024876,41613.0,41602.0,0.0442]
[1641910845493,0.7878,41616.0,41602.0,0.0442]
[1641910845494,0.3678,41616.0,41607.0,0.060074]
[1641910845691,0.024876,41613.0,41612.0,0.33073163]
[1641910845890,0.024876,41613.0,41612.0,0.37493163]
[1641910846091,0.34108352,41613.0,41612.0,0.47493163]
[1641910846289,0.34108352,41613.0,41612.0,0.3842]
[1641910846690,0.074876,41613.0,41612.0,0.3842]
[1641910846890,0.07813196,41616.0,41612.0,0.444269]
[1641910847093,0.2243,41618.0,41613.0,0.05]
[1641910847292,0.2243,41618.0,41614.0,0.0442]
[1641910847693,0.31186066,41617.0,41615.0,0.060056]
[1641910847892,0.33673666,41617.0,41616.0,0.0442]
[1641910848092,0.024876,41617.0,41616.0,0.0442]
[1641910848695,1.00898273,41617.0,41616.0,0.0442]
[1641910848898,1.9308783,41617.0,41616.0,0.0442]
[1641910849168,0.00121771,41616.0,41614.0,0.013]
[1641910849356,0.06008549,41614.0,41612.0,0.24]
[1641910849554,2.15747942,41613.0,41612.0,0.24]
[1641910849754,2.20667143,41613.0,41612.0,0.24]
[1641910849956,1.35,41613.0,41612.0,0.24]
[1641910850154,1.35,41613.0,41612.0,0.25]
[1641910850357,2.6584705,41613.0,41612.0,0.25]
[1641910851355,2.6584705,41613.0,41612.0,0.24]
[1641910851557,2.1809169,41613.0,41612.0,0.24]
[1641910851957,2.1809169,41613.0,41612.0,0.246]
[1641910852990,0.06138192,41614.0,41612.0,0.246]
[1641910852991,0.11008549,41614.0,41612.0,0.246]
[1641910853187,0.05,41614.0,41612.0,0.246]
[1641910853386,0.05,41616.0,41612.0,0.24]
[1641910853585,0.81668613,41617.0,41612.0,0.24]
[1641910853586,0.376147,41615.0,41612.0,0.24]
[1641910853987,0.376147,41615.0,41612.0,0.248]
[1641910854188,0.00122643,41614.0,41612.0,0.248]
[1641910854393,0.06010118,41604.0,41589.0,0.06280628]
[1641910854588,0.0012649,41608.0,41586.0,0.0012317]
[1641910854589,0.024876,41590.0,41586.0,0.0012317]
[1641910854788,0.024876,41590.0,41587.0,0.351301]
[1641910854987,0.024876,41590.0,41585.0,0.12071657]
[1641910855186,0.27577639,41590.0,41585.0,0.12071657]
[1641910855786,0.27577639,41590.0,41585.0,0.12071675]
[1641910855986,0.27577639,41590.0,41585.0,0.36071675]
[1641910855987,0.024876,41590.0,41585.0,0.36071675]
[1641910856387,0.024876,41590.0,41586.0,0.351321]
[1641910856643,0.024876,41590.0,41587.0,0.2]
[1641910856841,0.024876,41590.0,41588.0,0.351304]
[1641910857042,0.024876,41590.0,41588.0,0.1]
[1641910857440,0.024876,41590.0,41588.0,0.160107]
[1641910857638,0.024876,41590.0,41588.0,0.1]
[1641910857837,0.024876,41590.0,41588.0,0.3]
[1641910858036,0.024876,41590.0,41588.0,0.1]
[1641910858237,0.024876,41590.0,41589.0,0.351294]
[1641910858440,0.024876,41590.0,41585.0,0.2405049]
[1641910858638,0.024876,41590.0,41586.0,0.35132]
[1641910859039,0.48538788,41599.0,41588.0,0.65]
[1641910859240,0.31345953,41598.0,41589.0,0.46948492]
[1641910859439,0.05,41598.0,41589.0,0.46948492]
[1641910859643,0.06010939,41596.0,41589.0,0.56948492]
[1641910859840,0.05,41599.0,41589.0,0.1]
[1641910860041,0.24699025,41597.0,41590.0,0.060103]
[1641910860243,0.05,41599.0,41590.0,0.5300633]
[1641910860689,0.05,41599.0,41590.0,0.6300633]
[1641910860890,0.12020992,41599.0,41590.0,0.5699603]
[1641910861092,0.05,41598.0,41590.0,0.1]
[1641910861292,0.31833488,41593.0,41590.0,0.1]
[1641910861491,0.36833488,41593.0,41590.0,0.1]
[1641910861691,0.36833488,41593.0,41586.0,0.6145702]
[1641910861893,0.05,41593.0,41587.0,0.411413]
[1641910862093,0.05,41596.0,41587.0,0.511413]
[1641910862302,0.4159,41606.0,41591.0,0.351273]
[1641910862495,0.4159,41606.0,41596.0,0.170176]
[1641910862694,0.4159,41606.0,41596.0,0.05]
[1641910862895,0.4159,41606.0,41597.0,0.0442]
[1641910863096,0.4159,41606.0,41597.0,0.2442]
[1641910863495,0.4159,41606.0,41604.0,0.36250748]
[1641910863697,0.4159,41606.0,41605.0,0.0442]
[1641910863895,0.4159,41606.0,41605.0,0.7942]
[1641910864144,0.4159,41606.0,41605.0,0.1442]
[1641910865141,0.4159,41606.0,41605.0,0.81586758]
[1641910865342,0.4159,41606.0,41605.0,0.71586758]
[1641910865542,0.4159,41606.0,41605.0,0.3442]
[1641910865843,0.4159,41606.0,41605.0,0.404275]
[1641910866242,0.4159,41606.0,41605.0,0.76976101]
[1641910866442,0.8659,41606.0,41605.0,0.444275]
[1641910866743,0.9159,41606.0,41605.0,0.2842]
[1641910867142,0.2842,41605.0,41592.0,0.00126354]
[1641910867345,0.42263105,41604.0,41587.0,0.5]
[1641910867553,0.42263105,41604.0,41585.0,0.0005432]
[1641910867554,0.060106,41596.0,41585.0,0.0005432]
[1641910867744,0.29754622,41596.0,41588.0,0.060106]
[1641910867996,0.05,41596.0,41589.0,0.2]
[1641910868395,0.05,41600.0,41589.0,0.2]
[1641910868597,0.05,41604.0,41594.0,0.2]
[1641910868799,0.05,41604.0,41599.0,0.2]
[1641910868999,0.72746113,41606.0,41599.0,0.2442]
[1641910869198,0.72746113,41606.0,41599.0,0.0442]
[1641910869597,0.4659,41606.0,41599.0,0.0442]
[1641910869999,0.4659,41606.0,41601.0,0.120159]
[1641910870997,0.32733918,41603.0,41599.0,0.0582]
[1641910871199,0.060093,41604.0,41599.0,0.0582]
[1641910871397,0.31400945,41605.0,41599.0,0.0582]
[1641910871398,0.05,41603.0,41599.0,0.104291]
[1641910871650,0.31400945,41605.0,41599.0,0.060091]
[1641910872044,0.31400945,41605.0,41599.0,0.074091]
[1641910872244,0.29940723,41604.0,41599.0,0.074091]
[1641910872644,0.34940723,41604.0,41599.0,0.074091]
[1641910873448,0.34940723,41604.0,41599.0,0.060091]
[1641910873645,0.34940723,41604.0,41599.0,0.52604438]
[1641910874046,0.34940723,41604.0,41599.0,0.173091]
[1641910874647,0.34940723,41604.0,41599.0,0.373091]
[1641910874846,0.34940723,41604.0,41599.0,0.173091]
[1641910875047,0.34940723,41604.0,41599.0,0.073091]
[1641910875248,0.34940723,41604.0,41600.0,0.47178977]
[1641910875490,0.4659,41606.0,41601.0,0.060086]
[1641910875688,0.4659,41606.0,41602.0,0.0442]
[1641910875689,0.4159,41606.0,41602.0,0.0442]
[1641910876587,0.4159,41606.0,41604.0,0.060075]
[1641910876787,0.4159,41606.0,41605.0,0.46500424]
[1641910877187,0.4159,41606.0,41605.0,0.76500424]
[1641910877388,0.4159,41606.0,41605.0,0.91827413]
[1641910878188,0.4159,41606.0,41605.0,0.93127413]
[1641910878588,0.4159,41606.0,41605.0,0.46626989]
[1641910878989,0.4159,41606.0,41605.0,0.51046989]
[1641910879441,0.4159,41606.0,41605.0,0.49746989]
[1641910879844,0.4659,41606.0,41605.0,0.19746989]
[1641910880043,0.4659,41606.0,41605.0,0.20946989]
[1641910880443,1.6159,41606.0,41605.0,0.16526989]
[1641910880650,1.88584706,41606.0,41605.0,0.16526989]
[1641910880845,2.59536251,41606.0,41605.0,0.16526989]
[1641910881445,2.59536251,41606.0,41605.0,0.15326989]
[1641910881744,2.32541545,41606.0,41605.0,0.15326989]
[1641910882145,0.78710831,41606.0,41605.0,0.16426989]
[1641910883397,0.78710831,41606.0,41605.0,0.15326989]
[1641910883597,0.73710831,41606.0,41605.0,0.15326989]
[1641910883799,0.78710831,41606.0,41605.0,0.15326989]
[1641910884097,0.78710831,41606.0,41605.0,0.16426989]
[1641910885399,1.43710831,41606.0,41605.0,0.15326989]
[1641910886199,1.44410831,41606.0,41605.0,0.16126989]
[1641910887043,1.3,41605.0,41596.0,0.120178]
[1641910887245,0.376147,41604.0,41587.0,0.4986858]
[1641910887444,0.060103,41600.0,41587.0,0.4986858]
[1641910887643,0.060103,41600.0,41585.0,0.00050541]
[1641910887644,0.98141985,41599.0,41585.0,0.00050541]
[1641910887846,0.1,41596.0,41585.0,0.00050541]
[1641910888045,1.75781333,41586.0,41585.0,0.00050541]
[1641910888244,1.75781333,41586.0,41585.0,0.00101089]
[1641910888245,2.14488143,41586.0,41585.0,0.00101089]
[1641910888448,2.14488143,41586.0,41585.0,0.00050548]
[1641910888646,1.81873443,41586.0,41585.0,0.00050548]
[1641910888844,1.76873443,41586.0,41585.0,0.00050548]
[1641910889346,0.14477,41586.0,41585.0,0.00050548]
[1641910889546,0.52241336,41595.0,41583.0,0.00050557]
[1641910889547,0.4659,41595.0,41583.0,0.00050557]
[1641910889745,0.5159,41595.0,41583.0,0.00050557]
[1641910890145,0.060104,41594.0,41588.0,0.060101]
[1641910890389,0.99081165,41595.0,41583.0,0.01050557]
[1641910890390,0.33301895,41587.0,41583.0,0.01050557]
[1641910890592,0.05,41587.0,41583.0,0.13071957]
[1641910890790,0.05,41587.0,41585.0,0.00050549]
[1641910890993,0.4659,41595.0,41585.0,0.00050549]
[1641910891190,0.060104,41594.0,41585.0,0.00050549]
[1641910891393,0.31974512,41593.0,41585.0,0.00050549]
[1641910891589,0.060104,41594.0,41585.0,0.00050549]
[1641910891788,0.060104,41594.0,41587.0,0.060107]
[1641910892589,0.060104,41594.0,41587.0,0.0601066]
[1641910892790,0.24761663,41589.0,41587.0,0.0601066]
[1641910892989,0.29761663,41589.0,41587.0,0.0601066]
[1641910893191,1.27459398,41588.0,41587.0,0.060108]
[1641910893391,1.27459398,41588.0,41585.0,0.00950548]
[1641910894146,1.27459398,41588.0,41585.0,0.01350548]
[1641910894341,1.27459398,41588.0,41585.0,0.013]
[1641910895441,0.060116,41587.0,41584.0,0.00101102]
[1641910895643,0.110116,41587.0,41584.0,0.00050551]
[1641910896043,0.160116,41587.0,41584.0,0.00050551]
[1641910896246,0.110116,41587.0,41584.0,0.01450551]
[1641910896443,0.05,41587.0,41584.0,0.01450551]
[1641910896842,1.32459398,41588.0,41584.0,0.014]
[1641910897443,1.32459398,41588.0,41583.0,0.00050553]
[1641910897996,1.32459398,41588.0,41584.0,0.00050551]
[1641910898294,0.060118,41587.0,41584.0,0.00050551]
[1641910898494,0.110118,41587.0,41584.0,0.00050551]
[1641910899095,0.110118,41587.0,41583.0,0.01250552]
[1641910899296,0.060118,41587.0,41583.0,0.01250552]
[1641910899495,1.32459398,41588.0,41583.0,0.00050552]
[1641910900296,1.32459398,41588.0,41583.0,0.01150552]
[1641910900497,0.05,41587.0,41583.0,0.01150552]
[1641910900699,0.060117,41586.0,41583.0,0.01150552]
[1641910900898,0.05,41587.0,41583.0,0.01150552]
[1641910901097,0.32459398,41588.0,41583.0,0.01150552]
[1641910901298,0.05,41587.0,41583.0,0.01150552]
[1641910901501,0.05,41587.0,41582.0,0.00050554]
[1641910901741,0.060119,41586.0,41580.0,0.46754079]
[1641910901943,0.32459398,41588.0,41580.0,0.46754079]
[1641910901944,0.32459398,41588.0,41582.0,0.060115]
[1641910902141,0.32459398,41588.0,41582.0,0.071115]
[1641910903242,0.32459398,41588.0,41582.0,0.011]
[1641910903543,0.32459398,41588.0,41582.0,0.060115]
[1641910903842,0.32459398,41588.0,41579.0,0.11573154]
[1641910904046,0.060122,41584.0,41577.0,0.00129873]
[1641910904245,0.060122,41584.0,41582.0,0.011]
[1641910904642,0.86860378,41583.0,41582.0,0.011]
[1641910904843,0.26860378,41583.0,41582.0,0.011]
[1641910905045,1.26860378,41583.0,41582.0,0.011]
[1641910905243,1.0,41583.0,41582.0,0.011]
[1641910905488,1.0,41583.0,41580.0,0.00059591]
[1641910906088,1.31960571,41581.0,41580.0,0.00059591]
[1641910906290,0.57657478,41581.0,41580.0,0.014]
[1641910906490,0.67657478,41581.0,41580.0,0.014]
[1641910907091,1.62657478,41581.0,41580.0,0.014]
[1641910907492,0.1,41581.0,41578.0,0.00059595]
[1641910907692,0.05,41581.0,41580.0,0.24]
[1641910907896,0.60594126,41594.0,41580.0,1.11297852]
[1641910908094,0.0085194,41594.0,41580.0,0.24]
[1641910908393,0.32141608,41590.0,41580.0,0.81975603]
[1641910908594,0.00724126,41594.0,41586.0,0.060109]
[1641910908793,0.00724126,41594.0,41587.0,0.51105577]
[1641910908993,0.00724126,41594.0,41588.0,0.0442]
[1641910909841,0.36274252,41591.0,41584.0,0.67320568]
[1641910910042,0.36274252,41591.0,41584.0,0.160111]
[1641910910242,0.36274252,41591.0,41588.0,0.011]
[1641910910444,0.47479477,41590.0,41588.0,0.011]
[1641910910744,0.31230098,41590.0,41588.0,0.011]
[1641910911443,0.31230098,41590.0,41580.0,0.240485]
[1641910911642,0.31230098,41590.0,41583.0,0.120215]
[1641910912243,0.31230098,41590.0,41583.0,0.129215]
[1641910912444,0.31230098,41590.0,41585.0,0.060111]
[1641910912889,0.00724126,41594.0,41585.0,0.060111]
[1641910913089,0.00724126,41594.0,41584.0,0.2]
[1641910913289,0.47837142,41594.0,41583.0,0.226715]
[1641910913490,0.060115,41591.0,41583.0,0.226715]
[1641910913691,0.060115,41591.0,41583.0,0.217715]
[1641910914090,0.66305741,41586.0,41583.0,0.217715]
[1641910914290,0.66305741,41586.0,41583.0,0.126715]
[1641910914495,0.71305741,41586.0,41583.0,0.126715]
[1641910914691,0.71305741,41586.0,41583.0,0.009]
[1641910914892,0.38313948,41586.0,41583.0,0.009]
[1641910915595,0.38313948,41586.0,41580.0,0.24050549]
[1641910915791,0.31016232,41583.0,41580.0,0.24050549]
[1641910915992,0.05,41583.0,41580.0,0.24050551]
[1641910916192,0.44326348,41586.0,41580.0,0.24850551]
[1641910916392,0.25149449,41580.0,41575.0,0.060374]
[1641910917042,0.01149449,41580.0,41575.0,0.060374]
[1641910917842,0.01149449,41580.0,41579.0,0.901385]
[1641910918042,0.2904,41593.0,41581.0,0.2]
[1641910918240,0.05,41593.0,41582.0,0.52488777]
[1641910918441,0.00724126,41594.0,41584.0,0.0601006]
[1641910918741,0.00724126,41594.0,41584.0,0.2601006]
[1641910918942,0.00724126,41594.0,41587.0,0.120203]
[1641910919141,0.00724126,41594.0,41582.0,0.00122343]
[1641910919441,0.47994633,41594.0,41581.0,0.0442]
[1641910919840,0.00724126,41594.0,41581.0,0.0442]
[1641910920040,0.27464994,41589.0,41582.0,0.120217]
[1641910920493,0.03224126,41594.0,41582.0,0.120217]
[1641910920793,0.00085892,41590.0,41582.0,0.120217]
[1641910921396,0.00085892,41590.0,41587.0,0.060104]
[1641910921596,0.00085892,41590.0,41588.0,0.52388408]
[1641910921895,0.00085892,41590.0,41588.0,0.0442]
[1641910922094,0.00085893,41590.0,41588.0,0.20429348]
[1641910922300,0.00085893,41590.0,41589.0,0.351297]
[1641910922496,0.00085893,41590.0,41589.0,0.395497]
[1641910922695,0.00085893,41590.0,41589.0,0.695497]
[1641910923296,0.00085893,41592.0,41591.0,0.39875927]
[1641910923495,0.00085893,41592.0,41591.0,0.79423227]
[1641910923794,0.00085893,41592.0,41591.0,0.89423227]
[1641910924245,0.00085893,41592.0,41591.0,1.10623227]
[1641910924543,0.048,41599.0,41594.0,0.351247]
[1641910924745,0.048,41599.0,41597.0,0.551215]
[1641910924955,0.4159,41601.0,41599.0,0.4]
[1641910925143,0.8093,41609.0,41603.0,0.3827761]
[1641910925344,0.76074301,41609.0,41604.0,0.2442]
[1641910925545,0.3678,41609.0,41604.0,0.2442]
[1641910925942,0.3678,41609.0,41605.0,0.26006891]
[1641910926143,0.3678,41609.0,41606.0,0.2442]
[1641910927549,0.3678,41609.0,41606.0,0.0442]
[1641910927550,0.33068067,41608.0,41606.0,0.0442]
[1641910927746,0.3678,41609.0,41606.0,0.0442]
[1641910928392,0.3678,41609.0,41606.0,0.0542]
[1641910929091,0.4178,41609.0,41606.0,0.0542]
[1641910929491,0.4178,41609.0,41606.0,0.0442]
[1641910929492,0.3678,41609.0,41606.0,0.0442]
[1641910930292,0.3678,41609.0,41606.0,0.0492]
[1641910931493,1.64447222,41607.0,41606.0,0.0492]
[1641910931742,1.64447222,41607.0,41606.0,0.0392]
[1641910931941,2.07061922,41607.0,41595.0,0.9907]
[1641910932143,0.4966234,41606.0,41595.0,0.0442]
[1641910932340,2.19109562,41607.0,41606.0,0.011]
[1641910932543,1.69447222,41607.0,41606.0,0.011]
[1641910932745,2.20862171,41607.0,41606.0,0.011]
[1641910932942,1.74447222,41607.0,41606.0,0.011]
[1641910933543,1.74447222,41607.0,41595.0,0.0442]
[1641910933742,2.21483417,41607.0,41595.0,0.0442]
[1641910933944,0.33502808,41601.0,41598.0,0.060092]
[1641910934143,0.060092,41603.0,41598.0,0.060092]
[1641910934544,0.3169336,41605.0,41595.0,0.0572]
[1641910934545,0.69266497,41604.0,41595.0,0.0572]
[1641910934945,0.69266497,41604.0,41595.0,0.013]
[1641910935147,0.06132712,41601.0,41595.0,0.013]
[1641910935396,1.60715478,41596.0,41595.0,0.013]
[1641910935590,1.60715478,41596.0,41585.0,0.00048704]
[1641910935591,0.441476,41593.0,41585.0,0.00048704]
[1641910935790,0.05,41595.0,41585.0,0.00048704]
[1641910936389,0.05,41595.0,41585.0,0.01248712]
[1641910936592,0.00724127,41594.0,41585.0,0.01248712]
[1641910937590,0.00724127,41594.0,41588.0,0.120198]
[1641910937790,0.05,41593.0,41588.0,0.120198]
[1641910938190,0.00724127,41594.0,41588.0,0.120198]
[1641910938492,0.00724127,41594.0,41588.0,0.016]
[1641910938789,0.00724127,41594.0,41590.0,0.060103]
[1641910938989,0.00724127,41594.0,41588.0,0.016]
[1641910939453,0.33680702,41594.0,41588.0,0.016]
[1641910939659,0.45629302,41592.0,41590.0,0.060103]
[1641910939855,1.78259941,41591.0,41587.0,0.120202]
[1641910940056,1.88259941,41591.0,41585.0,0.00050771]
[1641910940454,1.4,41591.0,41587.0,0.024]
[1641910941054,0.376147,41590.0,41587.0,0.024]
[1641910941256,1.4,41591.0,41587.0,0.024]
[1641910942054,1.460118,41591.0,41587.0,0.024]
[1641910942254,1.35,41591.0,41585.0,0.00050393]
[1641910942456,0.00724127,41594.0,41587.0,0.024]
[1641910942655,0.00072122,41596.0,41587.0,0.024]
[1641910943493,0.26413241,41592.0,41590.0,0.0601]
[1641910943694,0.00072122,41596.0,41590.0,0.0601]
[1641910943695,0.00072125,41596.0,41590.0,0.0601]
[1641910944294,0.00072125,41596.0,41590.0,0.0751]
[1641910944795,0.2443483,41595.0,41590.0,0.015]
[1641910945196,0.3044593,41595.0,41590.0,0.015]
[1641910945396,0.2443483,41595.0,41590.0,0.015]
[1641910945597,0.2443483,41595.0,41587.0,0.060108]
[1641910945800,0.2943483,41595.0,41587.0,0.060108]
[1641910946198,0.2943483,41595.0,41585.0,0.00050459]
[1641910946199,0.40157598,41594.0,41585.0,0.00050459]
[1641910946396,0.40157598,41594.0,41587.0,0.053]
[1641910946653,0.45157598,41594.0,41587.0,0.053]
[1641910947242,1.3,41588.0,41587.0,0.053]
[1641910947444,1.35,41588.0,41587.0,0.053]
[1641910947642,1.35,41588.0,41585.0,0.0606146]
[1641910947643,0.05,41588.0,41585.0,0.0606146]
[1641910947843,1.1426,41607.0,41588.0,1.3]
[1641910948046,0.4159,41605.0,41601.0,0.2]
[1641910948243,0.4159,41605.0,41603.0,0.2]
[1641910948449,0.4159,41605.0,41604.0,0.7408234]
[1641910948643,0.4159,41605.0,41604.0,0.0442]
[1641910949043,0.4159,41605.0,41604.0,0.104273]
[1641910949241,0.4159,41605.0,41604.0,0.204273]
[1641910949441,0.4159,41605.0,41604.0,0.1442]
[1641910949843,1.1659,41605.0,41604.0,0.0292]
[1641910950493,2.02082203,41605.0,41604.0,0.013]
[1641910950893,2.3608799,41605.0,41604.0,0.013]
[1641910951097,2.4108799,41605.0,41604.0,0.013]
[1641910951293,2.4108799,41605.0,41604.0,0.0572]
[1641910951494,1.8608799,41605.0,41604.0,0.0572]
[1641910951695,1.86115075,41605.0,41604.0,0.0442]
[1641910951894,1.52109288,41605.0,41604.0,0.0442]
[1641910952096,1.21617085,41605.0,41604.0,0.0442]
[1641910952495,1.21617085,41605.0,41604.0,0.0572]
[1641910953201,1.52153551,41605.0,41604.0,0.0572]
[1641910953702,1.52153551,41605.0,41604.0,0.0442]
[1641910954347,1.52153551,41605.0,41604.0,0.0612]
[1641910954549,1.52153551,41605.0,41604.0,0.017]
[1641910955551,2.07153551,41605.0,41604.0,0.017]
[1641910955751,2.07153551,41605.0,41601.0,0.15]
[1641910956052,1.3,41598.0,41590.0,1.278284]
[1641910956255,0.7,41597.0,41591.0,0.24546948]
[1641910956952,0.7,41597.0,41595.0,0.06009]
[1641910957152,0.7,41597.0,41591.0,0.00126948]
[1641910957153,1.43638432,41597.0,41591.0,0.00126948]
[1641910957354,0.29922541,41593.0,41591.0,0.060104]
[1641910957552,0.29922541,41593.0,41586.0,0.180275]
[1641910958196,0.58608865,41592.0,41586.0,0.180275]
[1641910958395,0.58608865,41592.0,41588.0,0.060108]
[1641910958996,0.58608865,41594.0,41588.0,0.060108]
[1641910959597,0.58608865,41595.0,41588.0,0.12020398]
[1641910959797,0.58608865,41595.0,41591.0,0.120189]
[1641910960296,0.58608865,41594.0,41591.0,0.170189]
[1641910960497,0.58608865,41594.0,41591.0,0.182189]
[1641910960697,0.58608865,41594.0,41591.0,0.132189]
[1641910960897,0.00085886,41596.0,41591.0,0.132189]
[1641910961748,0.00027779,41594.0,41591.0,0.120189]
[1641910961951,1.23312485,41592.0,41591.0,0.060096]
[1641910962149,0.95,41592.0,41590.0,0.22079061]
[1641910962347,0.95,41592.0,41590.0,0.12079061]
[1641910962548,0.95,41592.0,41591.0,0.014]
[1641910963249,0.00027779,41594.0,41591.0,0.014]
[1641910963250,0.00027779,41594.0,41591.0,0.134195]
[1641910963650,0.00027779,41594.0,41591.0,0.120195]
[1641910964450,0.00027779,41594.0,41591.0,0.19329]
[1641910965048,0.00027779,41594.0,41591.0,0.133195]
[1641910965490,0.34414299,41594.0,41591.0,0.133195]
[1641910965690,0.34414299,41594.0,41591.0,0.013]
[1641910966090,0.39414299,41594.0,41591.0,0.013]
[1641910966294,0.39414299,41594.0,41590.0,0.00048768]
[1641910966495,0.44150686,41593.0,41591.0,0.013]
[1641910966693,1.3,41592.0,41590.0,0.00048768]
[1641910966894,1.79137245,41591.0,41590.0,0.00048768]
[1641910967092,1.92147245,41591.0,41590.0,0.00048768]
[1641910967692,1.92147245,41591.0,41588.0,0.00048771]
[1641910967895,0.45945878,41590.0,41588.0,0.00048771]
[1641910968491,0.45945878,41590.0,41588.0,0.01848771]
[1641910968691,2.02304595,41589.0,41588.0,0.01848771]
[1641910968892,2.07304595,41589.0,41588.0,0.018]
[1641910969556,0.00027742,41593.0,41588.0,0.018]
[1641910969754,0.00027742,41593.0,41587.0,0.00050847]
[1641910970154,0.00027742,41593.0,41586.0,0.00050848]
[1641910970554,0.00027742,41593.0,41587.0,0.028]
[1641910971154,0.00027742,41593.0,41588.0,0.12070845]
[1641910971553,0.00027739,41592.0,41588.0,0.12070845]
[1641910972355,0.00027739,41592.0,41588.0,0.00101309]
[1641910972554,0.00027739,41592.0,41588.0,0.02450464]
[1641910973593,0.00027739,41592.0,41588.0,0.02500928]
[1641910973794,0.00027739,41592.0,41588.0,0.00050464]
[1641910974399,0.00027739,41592.0,41588.0,0.03750464]
[1641910974995,0.44371217,41592.0,41588.0,0.03750464]
[1641910975194,0.00027739,41592.0,41588.0,0.03750464]
[1641910975394,0.05027739,41592.0,41588.0,0.03750464]
[1641910975595,0.00027739,41592.0,41588.0,0.00050464]
[1641910975994,0.05027739,41592.0,41588.0,0.00050533]
[1641910976653,0.00027702,41591.0,41588.0,0.05850533]
[1641910977251,0.00027702,41591.0,41580.0,0.42355006]
[1641910977252,1.3,41588.0,41552.0,0.0011]
[1641910977452,1.3,41588.0,41552.0,0.0360404]
[1641910977453,0.00124579,41569.0,41552.0,0.0360404]
[1641910977751,0.00124579,41569.0,41546.0,0.0011]
[1641910977752,0.0012017,41552.0,41546.0,0.0011]
[1641910977950,0.00129262,41549.0,41546.0,0.0011]
[1641910978251,0.00127134,41547.0,41546.0,0.0011]
[1641910982310,0.28811449,41542.0,41539.0,0.36397265]
[1641910982507,0.00126028,41548.0,41541.0,0.35178]
[1641910982508,0.4848899,41548.0,41541.0,0.35178]
[1641910982708,0.00125854,41541.0,41528.0,0.2]
[1641910982908,0.00122881,41547.0,41535.0,0.2442]
[1641910983109,0.48362962,41557.0,41537.0,0.2]
[1641910983308,0.48362962,41557.0,41539.0,0.06017]
[1641910983309,0.00143499,41550.0,41539.0,0.06017]
[1641910983511,0.06017155,41548.0,41540.0,0.0442]
[1641910983709,0.06017155,41548.0,41546.0,0.24673827]
[1641910983710,0.25479332,41548.0,41546.0,0.24673827]
[1641910984175,0.00143499,41550.0,41546.0,0.24673827]
[1641910984176,0.00023291,41550.0,41546.0,0.49673827]
[1641910984565,0.00023291,41550.0,41548.0,0.06015]
[1641910984765,0.00023291,41550.0,41549.0,0.0442]
[1641910984969,0.00023291,41550.0,41549.0,0.2442]
[1641910985566,0.00023291,41550.0,41549.0,0.0442]
[1641910986769,0.0014351,41556.0,41552.0,0.060152]
[1641910987069,0.00023291,41556.0,41554.0,0.29740192]
[1641910987269,0.00023291,41556.0,41555.0,0.0442]
[1641910987906,0.00023291,41556.0,41555.0,0.104351]
[1641910988107,0.06015069,41565.0,41555.0,0.104351]
[1641910988108,0.2899,41569.0,41556.0,1.5]
[1641910988310,0.45756948,41572.0,41563.0,0.2]
[1641910988509,0.45886716,41575.0,41565.0,0.2337]
[1641910988707,0.00129768,41575.0,41566.0,0.2442]
[1641910988912,0.4159,41576.0,41571.0,0.2]
[1641910989108,0.4159,41576.0,41573.0,0.2]
[1641910989406,0.4159,41576.0,41575.0,0.29462394]
[1641910989605,0.4159,41576.0,41575.0,0.63504394]
[1641910989810,0.4159,41576.0,41575.0,0.98774402]